bitfinex/quotes_SOLUSD_20251116
["timestamp","ask_amount","ask_price","bid_price","bid_amount"]
[1763303113156,0.7,139.77,139.73,0.37]
[1763303113560,0.7,139.77,139.74,7.15614713]
[1763303113950,126.8512,139.79,139.74,7.15614713]
[1763303114157,0.65,139.8,139.75,10.15882769]
[1763303114585,0.65,139.8,139.76,0.37]
[1763303115671,0.65,139.8,139.76,7.52476967]
[1763303115865,7.8031929,139.8,139.75,38.43811669]
[1763303116070,7.8031929,139.8,139.75,16.94429617]
[1763303116266,0.69,139.79,139.75,17.31429617]
[1763303118567,0.69,139.79,139.75,16.94429617]
[1763303119269,0.69,139.79,139.75,17.31429617]
[1763303119578,0.69,139.79,139.75,16.94429617]
[1763303121182,0.69,139.79,139.75,17.31429617]
[1763303123476,111.35218047,139.82,139.76,0.37]
[1763303123792,0.69,139.79,139.76,0.37]
[1763303124159,0.69,139.79,139.75,56.69720434]
[1763303125782,0.69,139.79,139.75,35.20338382]
[1763303127801,0.69,139.79,139.75,34.83338382]
[1763303128103,0.69,139.79,139.75,35.20338382]
[1763303131181,0.69,139.79,139.75,56.69720434]
[1763303133291,0.69,139.79,139.76,0.37]
[1763303133608,104.2,139.82,139.77,9.78882769]
[1763303133809,0.69,139.81,139.77,9.78882769]
[1763303133996,0.69,139.81,139.77,31.65110837]
[1763303134506,0.69,139.81,139.77,10.15882769]
[1763303134711,0.69,139.81,139.78,7.15409929]
[1763303141504,0.69,139.81,139.78,25.03934753]
[1763303141822,0.69,139.81,139.78,7.15409929]
[1763303142021,0.69,139.81,139.76,25.0425192]
[1763303142624,0.69,139.81,139.76,25.4125192]
[1763303145907,0.69,139.81,139.76,9.78882769]
[1763303145908,7.84263443,139.81,139.76,9.78882769]
[1763303146109,0.68,139.8,139.76,9.78882769]
[1763303147431,0.68,139.8,139.77,7.15461114]
[1763303151039,0.68,139.8,139.77,7.52461114]
[1763303151244,0.68,139.8,139.77,25.411139]
[1763303151420,0.68,139.8,139.77,25.041139]
[1763303158941,0.68,139.8,139.77,7.15461114]
[1763303159235,0.68,139.8,139.76,38.43757099]
[1763303159444,0.68,139.8,139.76,31.28264821]
[1763303159625,0.68,139.8,139.76,38.43771819]
[1763303160017,0.68,139.8,139.76,56.32552586]
[1763303162153,0.68,139.8,139.76,34.83170534]
[1763303162458,0.68,139.8,139.76,56.32552586]
[1763303162742,0.68,139.8,139.76,34.83170534]
[1763303163041,0.68,139.8,139.76,56.32552586]
[1763303163244,0.68,139.8,139.76,34.83170534]
[1763303164343,0.68,139.8,139.76,56.32552586]
[1763303167131,0.68,139.8,139.76,56.69552586]
[1763303168267,0.68,139.83,139.78,9.78882769]
[1763303168543,0.88,139.84,139.78,32.44002769]
[1763303168740,0.88,139.84,139.8,9.78882769]
[1763303169133,0.88,139.84,139.8,10.15882769]
[1763303169332,0.68,139.83,139.8,10.15882769]
[1763303169524,0.68,139.83,139.81,5.02741675]
[1763303170148,0.68,139.83,139.82,7.15205263]
[1763303171550,0.2,139.84,139.82,7.15205263]
[1763303171749,0.2,139.84,139.82,7.52205263]
[1763303171919,0.2,139.84,139.82,12.54946938]
[1763303175128,0.2,139.84,139.82,12.17946938]
[1763303176155,0.2,139.84,139.82,5.02741675]
[1763303176459,0.72,139.83,139.81,7.15242293]
[1763303177346,0.72,139.83,139.8,19.80672484]
[1763303191281,0.72,139.83,139.8,16.94170318]
[1763303192082,0.72,139.83,139.8,19.80672484]
[1763303192779,0.2,139.84,139.81,0.37]
[1763303193172,0.2,139.84,139.81,7.72056049]
[1763303193379,0.92,139.84,139.81,7.72056049]
[1763303193569,0.92,139.84,139.81,0.37]
[1763303194384,0.92,139.84,139.82,7.15205263]
[1763303195301,0.2,139.84,139.82,7.15205263]
[1763303195671,0.2,139.84,139.82,10.01666393]
[1763303195871,0.92,139.84,139.82,10.01666393]
[1763303196078,0.2,139.84,139.82,10.01666393]
[1763303196263,0.2,139.84,139.83,17.31036884]
[1763303196577,0.2,139.84,139.83,20.17477501]
[1763303201990,0.2,139.84,139.83,19.80477501]
[1763303202295,0.92,139.84,139.83,16.94036884]
[1763303203996,0.92,139.84,139.8,9.78882769]
[1763303204186,0.7,139.83,139.8,19.80639318]
[1763303204504,0.7,139.83,139.8,16.94157671]
[1763303206280,0.7,139.83,139.74,0.37]
[1763303206466,30.50274128,139.83,139.75,19.81010017]
[1763303206786,30.50274128,139.83,139.75,7.15563506]
[1763303206971,0.7,139.82,139.75,7.15563506]
[1763303207174,0.7,139.82,139.76,9.78882769]
[1763303207384,7.15256419,139.81,139.77,7.15461114]
[1763303207894,7.85220091,139.82,139.77,7.15461114]
[1763303208065,0.7,139.82,139.77,7.15461114]
[1763303208270,0.7,139.81,139.77,7.15461114]
[1763303213209,7.85256555,139.81,139.77,7.15461114]
[1763303213704,0.7,139.8,139.77,7.15461114]
[1763303220896,0.7,139.8,139.76,16.94390086]
[1763303221097,0.7,139.8,139.75,9.78882769]
[1763303221414,7.85316004,139.8,139.75,9.78882769]
[1763303221782,0.7,139.79,139.75,9.78882769]
[1763303222306,0.7,139.79,139.75,16.9444404]
[1763303224321,7.85375155,139.79,139.73,9.78882769]
[1763303224618,7.85375155,139.79,139.72,9.78882769]
[1763303224788,0.7,139.78,139.72,10.15882769]
[1763303225507,7.15461114,139.77,139.72,17.31582351]
[1763303226021,0.7,139.76,139.72,17.31582351]
[1763303226203,0.7,139.76,139.72,35.20875222]
[1763303226513,139.96281352,139.81,139.72,35.20875222]
[1763303226514,0.7,139.77,139.73,0.37]
[1763303227721,0.7,139.77,139.75,9.78882769]
[1763303229796,0.7,139.77,139.75,7.1554337]
[1763303231011,0.7,139.77,139.74,16.94497482]
[1763303235326,0.7,139.77,139.73,7.15621409]
[1763303235625,0.7,139.77,139.71,17.89397861]
[1763303235626,0.7,139.77,139.74,9.78882769]
[1763303235929,7.85463629,139.77,139.74,9.78882769]
[1763303236113,0.7,139.77,139.74,16.94486836]
[1763303236314,0.7,139.76,139.74,16.94486836]
[1763303237823,0.7,139.78,139.74,17.31486836]
[1763303238226,0.7,139.78,139.76,9.78882769]
[1763303238826,0.7,139.8,139.76,9.78882769]
[1763303239034,0.7,139.8,139.76,10.15882769]
[1763303239223,0.7,139.8,139.76,9.78882769]
[1763303239823,0.7,139.8,139.77,7.15461114]
[1763303240712,0.7,139.8,139.76,9.78882769]
[1763303240907,0.7,139.8,139.76,16.94381206]
[1763303244044,0.7,139.8,139.76,34.83161973]
[1763303245241,0.7,139.8,139.76,16.94381206]
[1763303251449,0.7,139.8,139.76,17.31381206]
[1763303251961,0.7,139.8,139.76,16.94381206]
[1763303253657,0.7,139.8,139.76,35.20161973]
[1763303256157,0.7,139.8,139.76,34.83161973]
[1763303258164,0.7,139.8,139.76,35.20161973]
[1763303259745,0.7,139.8,139.76,34.83161973]
[1763303259957,0.7,139.8,139.76,35.20161973]
[1763303261440,0.7,139.8,139.76,34.83161973]
[1763303261744,0.7,139.8,139.78,9.78882769]
[1763303261950,0.7,139.8,139.77,9.78882769]
[1763303262168,0.7,139.8,139.77,10.15882769]
[1763303262365,104.2,139.81,139.78,0.37]
[1763303262666,0.7,139.83,139.78,21.8576625]
[1763303262863,0.7,139.83,139.8,9.78882769]
[1763303263241,0.7,139.83,139.79,7.15358752]
[1763303263443,0.7,139.83,139.8,9.78882769]
[1763303266343,0.7,139.83,139.8,7.15303777]
[1763303266772,0.2,139.84,139.81,0.37]
[1763303267069,0.92,139.84,139.81,0.37]
[1763303267241,0.92,139.84,139.8,7.15303777]
[1763303267446,0.72,139.83,139.81,16.94125854]
[1763303268173,0.72,139.83,139.81,9.78882769]
[1763303268463,0.72,139.83,139.81,16.9412947]
[1763303268669,0.72,139.83,139.81,16.9412743]
[1763303270686,0.2,139.84,139.81,16.9412743]
[1763303270990,0.92,139.84,139.81,16.9412743]
[1763303271494,0.72,139.83,139.81,16.9412743]
[1763303272884,0.2,139.84,139.81,34.82268478]
[1763303273066,0.2,139.84,139.83,9.78882769]
[1763303274080,0.2,139.84,139.83,0.37]
[1763303274379,0.2,139.84,139.83,21.851508]
[1763303276178,0.2,139.84,139.83,29.00304915]
[1763303276381,0.2,139.84,139.83,28.63304915]
[1763303276571,0.2,139.84,139.83,16.94036884]
[1763303278376,0.2,139.84,139.83,17.31036884]
[1763303278753,0.2,139.84,139.83,20.1745699]
[1763303281587,0.92,139.84,139.81,9.78882769]
[1763303281888,0.92,139.84,139.81,12.65364416]
[1763303282086,0.72,139.83,139.81,12.65364416]
[1763303282254,0.72,139.83,139.81,9.78882769]
[1763303282454,0.72,139.83,139.81,19.8057804]
[1763303284598,0.72,139.83,139.81,16.94096393]
[1763303285681,0.2,139.84,139.81,19.8057804]
[1763303285870,0.92,139.84,139.81,37.68719088]
[1763303286071,0.92,139.84,139.81,35.19237441]
[1763303286272,0.92,139.84,139.83,9.78882769]
[1763303286584,0.2,139.84,139.83,9.78882769]
[1763303286964,0.2,139.84,139.83,12.65343899]
[1763303287180,0.2,139.84,139.83,13.02343899]
[1763303288063,0.2,139.84,139.83,20.17498014]
[1763303288259,0.2,139.84,139.83,19.80498014]
[1763303291472,0.92,139.84,139.81,29.80342622]
[1763303291669,0.92,139.84,139.82,9.78882769]
[1763303291863,0.72,139.83,139.82,9.78882769]
[1763303292787,0.2,139.84,139.82,9.78882769]
[1763303293002,0.92,139.84,139.83,7.15154115]
[1763303293596,0.2,139.84,139.83,10.01615245]
[1763303293778,0.9,139.84,139.83,10.01615245]
[1763303293974,0.9,139.84,139.83,7.15154115]
[1763303300313,0.2,139.84,139.83,16.94036884]
[1763303300809,0.91,139.84,139.83,16.94036884]
[1763303303614,0.91,139.84,139.83,19.80498014]
[1763303304012,0.2,139.84,139.83,19.80498014]
[1763303304895,0.2,139.84,139.83,20.17498014]
[1763303306592,0.2,139.84,139.83,19.80498014]
[1763303308118,0.2,139.84,139.83,20.17498014]
[1763303310008,0.2,139.84,139.83,19.80498014]
[1763303310195,0.2,139.84,139.83,20.17498014]
[1763303311115,0.2,139.84,139.83,19.80498014]
[1763303314113,0.2,139.84,139.83,20.17498014]
[1763303314434,0.2,139.84,139.83,19.80498014]
[1763303314638,0.2,139.84,139.83,20.17498014]
[1763303314927,0.2,139.84,139.83,19.80498014]
[1763303317727,0.2,139.84,139.83,20.17498014]
[1763303318423,0.2,139.84,139.83,19.80498014]
[1763303320607,0.2,139.84,139.83,20.17498014]
[1763303321236,1e-08,139.84,139.83,20.17498014]
[1763303323322,1e-08,139.85,139.84,32.44002769]
[1763303323525,1e-08,139.85,139.84,32.81002769]
[1763303323919,1e-08,139.85,139.84,35.67361361]
[1763303324132,1e-08,139.86,139.85,32.81002769]
[1763303325129,1e-08,139.86,139.85,39.9605461]
[1763303327344,1e-08,139.86,139.85,42.82392703]
[1763303327957,1e-08,139.87,139.86,10.15882769]
[1763303328629,1e-08,139.87,139.86,13.02179873]
[1763303329140,1e-08,139.89,139.88,32.44002769]
[1763303329320,1e-08,139.89,139.88,61.03704233]
[1763303329748,1e-08,139.89,139.88,63.8996036]
[1763303329949,1e-08,139.89,139.88,63.5296036]
[1763303330250,1e-08,139.89,139.88,63.8996036]
[1763303334452,0.71000001,139.89,139.88,42.4515738]
[1763303336457,0.71000001,139.89,139.88,19.8003738]
[1763303336952,0.71000001,139.89,139.88,42.4515738]
[1763303339834,0.71000001,139.89,139.88,39.58901253]
[1763303360155,0.71000001,139.89,139.88,32.44002769]
[1763303360761,0.71000001,139.89,139.88,39.58901253]
[1763303361878,0.71000001,139.89,139.86,2.86358592]
[1763303362050,7.85855596,139.89,139.86,2.86358592]
[1763303362249,7.85855596,139.89,139.86,2.14358592]
[1763303362479,0.66,139.88,139.84,7.1508371]
[1763303363470,7.80912868,139.88,139.84,7.1508371]
[1763303363970,0.66,139.87,139.84,7.1508371]
[1763303364670,0.66,139.87,139.83,9.78882769]
[1763303364856,0.66,139.87,139.83,16.94027612]
[1763303365871,7.80960013,139.87,139.81,7.15211097]
[1763303366258,0.66,139.86,139.81,7.15211097]
[1763303366563,7.81036177,139.86,139.81,9.78882769]
[1763303367084,0.66,139.85,139.81,9.78882769]
[1763303367865,0.66,139.85,139.81,16.94107672]
[1763303369580,0.66,139.85,139.81,34.8224872]
[1763303369880,0.66,139.85,139.81,35.5124872]
[1763303374872,0.66,139.85,139.83,16.94036884]
[1763303379496,0.66,139.86,139.83,35.50922173]
[1763303380171,0.66,139.87,139.85,9.78882769]
[1763303382601,0.66,139.87,139.86,7.15000715]
[1763303395811,1e-08,139.89,139.86,7.15000715]
[1763303396015,0.71000001,139.89,139.86,7.15000715]
[1763303396810,0.71000001,139.89,139.85,17.59911973]
[1763303397114,0.71000001,139.89,139.85,16.93911973]
[1763303398893,0.71000001,139.89,139.85,17.59911973]
[1763303399424,0.71000001,139.89,139.85,16.93911973]
[1763303399925,0.71000001,139.89,139.86,0.66]
[1763303400296,0.71000001,139.89,139.87,9.78882769]
[1763303401421,0.71000001,139.89,139.84,21.47996992]
[1763303401628,0.71000001,139.89,139.81,0.66]
[1763303401927,25.72975129,139.89,139.82,9.78882769]
[1763303402086,25.72975129,139.89,139.8,7.15307582]
[1763303402286,0.71,139.88,139.8,9.78882769]
[1763303402514,5.52578388,139.88,139.8,9.78882769]
[1763303402905,0.71,139.87,139.8,9.78882769]
[1763303403392,7.15000715,139.86,139.8,7.15304705]
[1763303403713,7.15000715,139.86,139.79,16.94232749]
[1763303403894,0.71,139.85,139.79,16.94232749]
[1763303404605,0.71,139.85,139.79,17.60232749]
[1763303404805,0.71,139.85,139.78,17.87423796]
[1763303405006,109.72908621,139.85,139.75,16.94446275]
[1763303405203,104.91,139.85,139.75,16.94446275]
[1763303405391,25.03039404,139.83,139.75,16.94446275]
[1763303405601,25.03039404,139.83,139.75,17.60446275]
[1763303405913,0.71,139.82,139.75,17.60446275]
[1763303406519,7.86219889,139.82,139.75,17.60446275]
[1763303407216,0.71,139.81,139.75,17.60446275]
[1763303408027,0.71,139.81,139.75,35.4935504]
[1763303408210,0.71,139.81,139.77,9.78882769]
[1763303408723,0.71,139.83,139.79,32.44002769]
[1763303409126,0.71,139.83,139.81,9.78882769]
[1763303409326,0.71,139.84,139.81,9.78882769]
[1763303410426,0.71,139.84,139.82,7.15205263]
[1763303410625,4.81349795,139.88,139.82,7.15205263]
[1763303410805,0.71,139.86,139.82,7.15205263]
[1763303414537,104.20000001,139.89,139.83,10.46882769]
[1763303414742,0.68,139.87,139.83,10.46882769]
[1763303415242,0.68,139.87,139.84,7.15102974]
[1763303418331,0.68,139.87,139.84,25.71860411]
[1763303418718,0.68,139.87,139.85,9.78882769]
[1763303420568,0.68000001,139.89,139.86,7.15000715]
[1763303421275,1e-08,139.89,139.86,25.02502502]
[1763303421439,1e-08,139.89,139.87,10.49882769]
[1763303421864,1e-08,139.89,139.88,10.49882769]
[1763303422461,1e-08,139.89,139.88,17.64781253]
[1763303424155,1e-08,139.89,139.88,20.51119346]
[1763303425263,0.2,139.92,139.91,9.78882769]
[1763303425468,1e-08,139.92,139.91,9.78882769]
[1763303425767,0.2,139.94,139.93,32.44002769]
[1763303426155,0.2,139.94,139.93,33.15002769]
[1763303426669,0.2,139.94,139.93,40.29645804]
[1763303428265,1e-08,139.95,139.94,10.49882769]
[1763303428768,1e-08,139.95,139.94,32.23888913]
[1763303428946,1e-08,139.95,139.94,10.49882769]
[1763303429755,1e-08,139.95,139.94,17.64474736]
[1763303429960,1e-08,139.97,139.96,32.44002769]
[1763303430148,1e-08,139.97,139.96,33.15002769]
[1763303431262,1e-08,139.97,139.96,40.29492623]
[1763303431950,1e-08,139.97,139.96,43.15625889]
[1763303444674,0.68000001,139.97,139.96,39.58492623]
[1763303445284,1e-08,139.97,139.96,39.58492623]
[1763303445796,1e-08,139.97,139.96,40.24492623]
[1763303446375,1e-08,139.97,139.96,39.58492623]
[1763303446780,1e-08,139.97,139.96,40.24492623]
[1763303447299,1e-08,139.97,139.96,39.58492623]
[1763303447669,0.68000001,139.97,139.96,39.58492623]
[1763303451808,1e-08,139.97,139.96,39.58492623]
[1763303454289,1e-08,139.97,139.96,38.81702623]
[1763303459581,1e-08,139.97,139.96,39.47702623]
[1763303460005,1e-08,139.97,139.96,42.33835889]
[1763303460410,1e-08,139.97,139.96,39.47702623]
[1763303460723,1e-08,139.97,139.96,38.81702623]
[1763303462601,0.68000001,139.97,139.96,38.81702623]
[1763303462805,0.68000001,139.97,139.93,7.1460115]
[1763303463007,0.68000001,139.97,139.89,10.01083023]
[1763303463206,0.68000001,139.97,139.89,2.86235643]
[1763303463398,0.68000001,139.97,139.86,17.16]
[1763303463602,25.00714489,139.96,139.9,22.6512]
[1763303464032,0.68,139.95,139.9,22.6512]
[1763303464324,0.68,139.95,139.89,7.14846348]
[1763303464536,0.68,139.95,139.89,9.78882769]
[1763303465429,0.68,139.95,139.89,32.44002769]
[1763303465630,25.01071886,139.94,139.87,16.93824648]
[1763303465794,25.01071886,139.94,139.86,46.9610771]
[1763303466001,0.68,139.93,139.86,46.9610771]
[1763303466298,0.68,139.93,139.87,9.78882769]
[1763303466638,0.68,139.93,139.87,10.44882769]
[1763303467702,0.68,139.93,139.89,9.78882769]
[1763303468826,0.68,139.93,139.9,7.14796283]
[1763303469029,7.82645339,139.93,139.89,9.78882769]
[1763303469325,7.82645339,139.93,139.87,9.78882769]
[1763303469514,0.68,139.92,139.87,9.78882769]
[1763303470134,0.68,139.92,139.87,16.93816451]
[1763303470313,0.68,139.92,139.87,17.59816451]
[1763303470515,0.68,139.92,139.87,16.93816451]
[1763303471327,7.827068,139.92,139.87,16.93816451]
[1763303471702,0.68,139.91,139.87,16.93816451]
[1763303474707,0.68,139.91,139.87,17.61816451]
[1763303474932,0.68,139.91,139.87,16.93816451]
[1763303475627,0.68,139.91,139.87,34.81190441]
[1763303475928,0.69,139.92,139.9,22.6512]
[1763303476231,0.69,139.91,139.88,9.78882769]
[1763303476431,0.69,139.91,139.89,7.1484738]
[1763303476731,0.69,139.91,139.88,16.9377903]
[1763303477702,0.69,139.91,139.88,9.78882769]
[1763303478329,7.83749611,139.91,139.87,22.6512]
[1763303478515,0.69,139.91,139.87,29.80051256]
[1763303478704,0.69,139.9,139.87,29.80051256]
[1763303480232,0.69,139.9,139.89,7.1484738]
[1763303480931,0.69,139.92,139.89,7.1484738]
[1763303483027,0.69,139.92,139.89,7.8584738]
[1763303483533,0.69,139.92,139.9,9.78882769]
[1763303484210,0.69,139.92,139.9,16.93675581]
[1763303487642,0.69,139.92,139.87,29.80053638]
[1763303487939,0.69,139.92,139.88,9.78882769]
[1763303488617,7.83717338,139.92,139.87,22.6512]
[1763303488818,7.83717338,139.92,139.88,9.78882769]
[1763303489120,0.69,139.91,139.88,9.78882769]
[1763303489322,0.69,139.91,139.87,22.6512]
[1763303489628,0.69,139.91,139.87,29.80062421]
[1763303491132,7.83756715,139.91,139.87,29.80062421]
[1763303491328,0.69,139.91,139.87,29.80055478]
[1763303491529,0.69,139.9,139.87,29.80055478]
[1763303501452,7.83796345,139.9,139.87,22.6512]
[1763303501852,0.69,139.89,139.87,22.6512]
[1763303502166,0.69,139.89,139.86,9.78882769]
[1763303502564,0.69,139.89,139.86,7.14999385]
[1763303505783,7.83855019,139.89,139.85,16.93920693]
[1763303506245,0.67,139.88,139.85,16.93920693]
[1763303508347,0.67,139.88,139.85,7.15037924]
[1763303510781,104.2,139.91,139.86,10.50882769]
[1763303510962,104.2,139.91,139.87,9.78882769]
[1763303511169,0.67,139.9,139.87,10.50882769]
[1763303511776,0.67,139.9,139.88,7.14898484]
[1763303513092,104.87,139.91,139.88,7.86898484]
[1763303513594,104.2,139.91,139.89,0.72]
[1763303513883,0.67,139.93,139.9,7.14796283]
[1763303514869,0.67,139.93,139.9,7.86796283]
[1763303517173,11.96407862,139.95,139.91,0.72]
[1763303517174,0.67,139.94,139.91,0.72]
[1763303517577,0.67,139.94,139.9,7.14796283]
[1763303517784,0.67,139.94,139.9,7.86796283]
[1763303518589,0.67,139.94,139.91,9.78882769]
[1763303519778,0.67,139.94,139.91,16.93585773]
[1763303520388,0.67,139.94,139.91,9.78882769]
[1763303520591,0.67,139.94,139.9,9.78882769]
[1763303520966,0.67,139.94,139.9,10.50882769]
[1763303521992,0.67,139.94,139.91,7.86745193]
[1763303522208,0.67000001,139.97,139.92,9.78882769]
[1763303522503,1e-08,139.97,139.92,10.50882769]
[1763303522700,1e-08,139.97,139.94,9.78882769]
[1763303522872,1e-08,139.97,139.95,0.72]
[1763303523274,1e-08,139.97,139.96,9.78882769]
[1763303523770,1e-08,139.97,139.96,0.72]
[1763303524193,1e-08,139.97,139.96,7.86489854]
[1763303525702,1e-08,139.97,139.96,7.14489854]
[1763303525913,1e-08,139.97,139.94,50.30369216]
[1763303525914,0.67000001,139.97,139.95,7.14525484]
[1763303526643,0.67000001,139.97,139.92,16.93574426]
[1763303526933,1e-08,139.97,139.92,33.16002769]
[1763303527114,1e-08,139.97,139.94,9.78882769]
[1763303527505,1e-08,139.97,139.95,0.72]
[1763303527827,1e-08,139.97,139.95,23.3712]
[1763303528019,1e-08,139.97,139.96,7.14489854]
[1763303528614,1e-08,139.97,139.96,7.86489854]
[1763303529124,1e-08,139.97,139.96,17.65372623]
[1763303535738,0.71000001,139.97,139.95,7.14525483]
[1763303535908,0.71000001,139.97,139.93,16.93525804]
[1763303536109,0.71000001,139.97,139.93,34.80133393]
[1763303536409,0.71000001,139.97,139.93,35.48133393]
[1763303536931,0.71000001,139.97,139.94,0.68]
[1763303537234,0.71000001,139.97,139.93,35.48133393]
[1763303537631,0.71000001,139.97,139.95,9.78882769]
[1763303537805,1e-08,139.97,139.96,22.6512]
[1763303538322,1e-08,139.97,139.96,33.12002769]
[1763303538838,1e-08,139.97,139.96,32.44002769]
[1763303539530,1e-08,139.97,139.96,39.58492623]
[1763303540744,1e-08,139.97,139.96,40.26492623]
[1763303553340,1e-08,139.97,139.96,39.58492623]
[1763303553554,1e-08,139.97,139.96,40.26492623]
[1763303554667,1e-08,139.97,139.96,39.58492623]
[1763303554864,0.71000001,139.97,139.96,39.58492623]
[1763303555045,1e-08,139.97,139.96,39.58492623]
[1763303555946,1e-08,139.97,139.96,40.26492623]
[1763303561664,1e-08,139.97,139.96,29.79609854]
[1763303561867,0.71000001,139.97,139.96,7.14489854]
[1763303570287,1e-08,139.97,139.96,7.14489854]
[1763303570986,1e-08,139.97,139.96,16.93372623]
[1763303575892,1e-08,139.97,139.96,17.59372623]
[1763303583900,1e-08,139.97,139.96,16.93372623]
[1763303584203,1e-08,139.97,139.96,39.58492623]
[1763303585314,1e-08,139.97,139.96,40.24492623]
[1763303585915,1e-08,139.97,139.96,17.59372623]
[1763303586722,0.2,139.99,139.98,32.44002769]
[1763303586924,1e-08,139.99,139.98,32.44002769]
[1763303587126,1e-08,139.99,139.98,33.10002769]
[1763303587320,1e-08,139.99,139.98,40.24390538]
[1763303589927,1e-08,139.99,139.98,7.14387769]
[1763303589928,0.68000001,139.99,139.98,7.14387769]
[1763303590100,0.68000001,139.99,139.98,29.79507769]
[1763303590445,0.68000001,139.99,139.98,7.14387769]
[1763303590633,0.68000001,139.99,139.98,29.79507769]
[1763303591604,1e-08,139.99,139.98,29.79507769]
[1763303591802,1e-08,139.99,139.98,39.58390538]
[1763303592626,1e-08,139.99,139.98,40.24390538]
[1763303592822,1e-08,139.99,139.98,39.58390538]
[1763303593405,1e-08,139.99,139.98,40.24390538]
[1763303593915,1e-08,139.99,139.98,39.58390538]
[1763303594115,1e-08,139.99,139.98,29.79507769]
[1763303594304,0.69000001,139.99,139.98,29.79507769]
[1763303598005,0.69000001,139.99,139.98,7.14387769]
[1763303600537,0.69000001,139.99,139.97,7.14418127]
[1763303601957,0.69000001,139.99,139.95,22.6512]
[1763303602120,7.83344176,139.99,139.96,22.6512]
[1763303602310,0.72,139.98,139.96,22.6512]
[1763303604043,0.72,139.98,139.95,7.14526367]
[1763303604718,0.72,139.98,139.94,7.14591967]
[1763303605256,7.8638785,139.98,139.93,29.79751019]
[1763303605423,7.8638785,139.98,139.93,22.6512]
[1763303605622,0.72,139.97,139.93,22.6512]
[1763303606950,7.14489854,139.96,139.93,22.6512]
[1763303607322,0.72,139.95,139.93,22.6512]
[1763303608141,0.72,139.95,139.93,29.79760657]
[1763303608534,0.72,139.97,139.93,30.46760657]
[1763303609435,0.72,139.97,139.93,48.33368246]
[1763303611224,0.72,139.98,139.94,10.45882769]
[1763303611422,0.72000001,139.99,139.94,10.45882769]
[1763303611648,0.72,139.98,139.95,0.67]
[1763303613046,0.72,139.98,139.96,7.14489854]
[1763303613350,1e-08,139.99,139.96,7.14489854]
[1763303613549,0.72,139.98,139.95,7.14526208]
[1763303615355,0.72,139.98,139.94,25.01006921]
[1763303615651,1e-08,139.99,139.94,25.01006921]
[1763303615836,0.72,139.98,139.95,0.67]
[1763303616026,0.72,139.98,139.94,25.01006921]
[1763303616225,0.72,139.98,139.94,25.68006921]
[1763303620539,0.72,139.98,139.94,7.14591967]
[1763303621452,0.72,139.98,139.94,25.01071886]
[1763303622059,0.72,139.98,139.94,25.68071886]
[1763303627971,0.72,139.98,139.94,7.14591967]
[1763303628757,7.86387847,139.98,139.93,29.79743622]
[1763303629146,0.66,139.97,139.93,29.79743622]
[1763303630383,7.8045568,139.97,139.93,7.14623622]
[1763303630869,0.66,139.96,139.93,7.14623622]
[1763303632567,0.66,139.96,139.92,7.1469411]
[1763303633449,0.66,139.96,139.92,7.8169411]
[1763303635451,0.66,139.96,139.92,7.1469411]
[1763303635680,0.66,139.97,139.95,22.6512]
[1763303636047,0.66000001,139.99,139.96,22.6512]
[1763303637071,0.66000001,139.99,139.97,7.14438808]
[1763303638161,1e-08,139.99,139.97,7.81438808]
[1763303640885,1e-08,139.99,139.98,0.67]
[1763303641195,1e-08,139.99,139.98,7.81387769]
[1763303641688,1e-08,139.99,139.98,7.14387769]
[1763303642788,1e-08,139.99,139.98,7.81387769]
[1763303643089,1e-08,139.99,139.98,17.60270538]
[1763303653074,0.66,140.06,140.03,22.6512]
[1763303653402,0.66,140.06,140.0,9.78882769]
[1763303653601,0.66,140.06,140.0,16.9314764]
[1763303653769,0.66,140.06,140.0,17.5814764]
[1763303653968,0.66,140.06,140.01,10.43882769]